bitfinex/quotes_SOLUSD_20220117
["timestamp","ask_amount","ask_price","bid_price","bid_amount"]
[1642378779374,17.16277558,147.86,147.72,41.2988]
[1642378779576,10.03,147.86,147.72,41.2988]
[1642378779775,10.03,147.86,147.72,51.0788]
[1642378780676,55.32339185,147.86,147.72,51.0788]
[1642378781277,55.32339185,147.86,147.72,45.0788]
[1642378782076,19.9305,147.86,147.72,45.0788]
[1642378782276,9.78,147.86,147.72,51.0788]
[1642378783378,7.13277558,147.89,147.73,67.55]
[1642378783577,21.50637588,147.91,147.77,77.6972]
[1642378783779,19.8056,147.91,147.79,67.55]
[1642378783979,20.0556,147.91,147.79,67.8]
[1642378784179,20.0556,147.91,147.79,0.25]
[1642378784581,20.0556,147.91,147.79,36.62410588]
[1642378784982,20.0556,147.91,147.79,42.62410588]
[1642378785180,20.0556,147.91,147.8,24.294]
[1642378785383,20.0556,147.91,147.8,34.6892]
[1642378786484,20.0556,147.91,147.8,24.544]
[1642378786887,21.75637588,147.91,147.8,24.544]
[1642378787284,20.0556,147.91,147.8,24.544]
[1642378788414,30.2031,147.91,147.8,24.544]
[1642378788614,25.7011,147.91,147.8,24.544]
[1642378789516,27.40187588,147.91,147.8,24.544]
[1642378789915,27.40187588,147.91,147.75,34.097]
[1642378790117,51.96251661,147.91,147.75,23.9483]
[1642378790714,51.96251661,147.91,147.75,47.5195]
[1642378790915,51.96251661,147.91,147.76,42.21645847]
[1642378791113,3.83131162,147.9,147.76,42.21645847]
[1642378791313,10.1511,147.86,147.76,42.21645847]
[1642378791713,35.80775385,147.85,147.76,42.21645847]
[1642378794015,35.80775385,147.85,147.76,42.46645847]
[1642378794420,10.1511,147.86,147.76,42.46645847]
[1642378795520,49.48610652,147.85,147.76,42.46645847]
[1642378796128,49.48610652,147.85,147.73,10.1502]
[1642378796129,49.73610652,147.85,147.73,10.1502]
[1642378796326,49.73610652,147.85,147.69,10.1527]
[1642378796327,9.78,147.84,147.69,10.1527]
[1642378796725,10.03,147.84,147.69,10.1527]
[1642378797134,10.03,147.84,147.7,40.69049916]
[1642378797524,10.03,147.84,147.7,40.94049916]
[1642378797724,3.84566005,147.83,147.71,24.3758]
[1642378797924,13.62566005,147.83,147.71,24.6258]
[1642378798123,13.62566005,147.83,147.71,92.1758]
[1642378798325,13.62566005,147.83,147.71,98.1758]
[1642378798527,9.78,147.83,147.71,98.1758]
[1642378799527,9.78,147.83,147.71,108.3272]
[1642378803130,51.62557533,147.83,147.71,108.3272]
[1642378803330,51.62557533,147.83,147.71,6.25]
[1642378803530,53.57635121,147.83,147.71,6.0]
[1642378803729,53.57635121,147.83,147.7,40.69049916]
[1642378803930,60.70912679,147.83,147.7,40.69049916]
[1642378804133,60.70912679,147.83,147.65,9.78]
[1642378804334,60.70912679,147.83,147.63,3.84638358]
[1642378804335,71.91399194,147.83,147.63,13.62638358]
[1642378804736,82.06669194,147.83,147.63,23.78318358]
[1642378805233,204.35669194,147.83,147.65,47.1584578]
[1642378805633,3.84664612,147.82,147.65,47.1584578]
[1642378805833,41.64425459,147.76,147.65,47.1584578]
[1642378806236,41.89425459,147.76,147.65,47.4084578]
[1642378806436,41.89425459,147.76,147.65,47.1584578]
[1642378806638,51.67425459,147.76,147.65,47.1584578]
[1642378807471,10.159,147.74,147.65,47.1584578]
[1642378807670,10.159,147.74,147.65,47.4084578]
[1642378807866,36.97848696,147.73,147.65,47.4084578]
[1642378808368,37.22848696,147.73,147.65,47.4084578]
[1642378808871,126.41876284,147.73,147.65,0.25]
[1642378809172,126.41876284,147.73,147.56,3.84638358]
[1642378809370,126.41876284,147.73,147.57,46.7582]
[1642378809371,133.55153842,147.73,147.57,46.7582]
[1642378809767,133.55153842,147.73,147.58,42.17350728]
[1642378810471,133.55153842,147.73,147.58,42.42350728]
[1642378810668,133.55153842,147.73,147.58,42.17350728]
[1642378811570,64.30076254,147.73,147.58,52.33380728]
[1642378811768,57.16798696,147.73,147.59,24.6979]
[1642378812169,20.1895,147.73,147.59,24.9479]
[1642378813270,63.43772204,147.73,147.59,24.9479]
[1642378813471,63.43772204,147.73,147.59,35.1077]
[1642378814070,63.43772204,147.73,147.59,24.9479]
[1642378814273,65.13849792,147.73,147.59,24.9479]
[1642378814687,65.13849792,147.73,147.59,24.6979]
[1642378815084,72.2712735,147.73,147.59,24.6979]
[1642378815882,72.2712735,147.73,147.59,24.9479]
[1642378816082,70.57049762,147.73,147.59,24.9479]
[1642378816282,139.8212735,147.73,147.59,24.9479]
[1642378817379,29.02305146,147.73,147.59,24.9479]
[1642378817581,9.78,147.73,147.59,24.9479]
[1642378817884,17.16282431,147.76,147.6,67.55]
[1642378818180,17.16282431,147.76,147.61,100.9696]
[1642378818181,10.0893,147.76,147.61,100.9696]
[1642378818382,10.0893,147.76,147.61,39.4196]
[1642378818585,45.01915914,147.75,147.62,41.85571608]
[1642378818882,65.20745914,147.75,147.62,41.85571608]
[1642378819083,1.70077588,147.74,147.62,41.85571608]
[1642378819484,1.95077588,147.74,147.62,41.85571608]
[1642378819882,1.95077588,147.74,147.62,42.10571608]
[1642378820386,10.1604,147.72,147.62,42.10571608]
[1642378820583,38.47067078,147.71,147.62,42.10571608]
[1642378822384,48.88157078,147.71,147.57,33.9804]
[1642378822584,79.03077588,147.7,147.57,24.2004]
[1642378822987,1.70077588,147.69,147.57,24.2004]
[1642378823182,1.70077588,147.69,147.56,22.8716]
[1642378823384,45.01915914,147.68,147.57,38.28079001]
[1642378823786,46.96993502,147.68,147.57,38.28079001]
[1642378823989,56.74993502,147.68,147.57,38.28079001]
[1642378824189,124.29993502,147.68,147.57,38.28079001]
[1642378824390,10.1641,147.67,147.57,38.28079001]
[1642378824787,79.03077588,147.66,147.57,38.28079001]
[1642378824988,38.47067078,147.65,147.57,38.28079001]
[1642378825189,77.33,147.64,147.57,38.28079001]
[1642378825388,77.58,147.64,147.57,38.28079001]
[1642378825788,79.28077588,147.64,147.57,38.28079001]
[1642378825993,19.9469,147.64,147.57,38.28079001]
[1642378826192,10.03,147.64,147.57,38.28079001]
[1642378826992,10.03,147.64,147.57,38.53079001]
[1642378827593,9.78,147.64,147.57,38.53079001]
[1642378827793,9.78,147.67,147.57,38.53079001]
[1642378828093,9.78,147.69,147.57,48.69179001]
[1642378828293,0.25,147.67,147.57,48.69179001]
[1642378828693,9.78,147.69,147.57,48.69179001]
[1642378828893,1.70077588,147.73,147.58,23.3485]
[1642378829192,9.78,147.72,147.61,10.1584]
[1642378829394,19.9386,147.74,147.61,10.4084]
[1642378829593,21.63937588,147.74,147.61,10.4084]
[1642378829793,41.58862113,147.73,147.62,41.40292199]
[1642378829995,43.28939701,147.73,147.62,41.40292199]
[1642378830294,43.53939701,147.73,147.62,41.65292199]
[1642378830702,1.95077588,147.73,147.62,41.65292199]
[1642378831495,12.11027588,147.73,147.62,41.65292199]
[1642378832399,53.36517882,147.73,147.62,41.65292199]
[1642378832998,12.11027588,147.73,147.62,41.65292199]
[1642378833801,0.25,147.73,147.62,41.65292199]
[1642378834003,0.25,147.73,147.62,119.36072199]
[1642378834201,9.78,147.74,147.62,119.36072199]
[1642378834202,10.03,147.74,147.62,51.81072199]
[1642378834603,0.25,147.74,147.62,51.81072199]
[1642378835002,10.408,147.75,147.63,23.8407]
[1642378835201,45.55426523,147.75,147.63,23.8407]
[1642378835404,45.55426523,147.75,147.63,24.0907]
[1642378835602,57.03504111,147.75,147.63,24.0907]
[1642378835804,124.58504111,147.75,147.63,24.0907]
[1642378838309,56.78504111,147.75,147.63,24.0907]
[1642378840006,57.03504111,147.75,147.63,24.0907]
[1642378840610,21.88877588,147.75,147.63,24.0907]
[1642378841438,0.25,147.75,147.63,24.0907]
[1642378841637,0.25,147.75,147.63,48.7721]
[1642378841836,13.55436264,147.77,147.63,122.3221]
[1642378842038,13.55436264,147.77,147.63,116.3221]
[1642378842244,23.47336264,147.77,147.63,116.3221]
[1642378842539,13.31676264,147.77,147.63,126.4791]
[1642378842737,11.61598676,147.77,147.63,132.4791]
[1642378844139,11.36598676,147.77,147.63,132.4791]
[1642378844346,11.36598676,147.77,147.64,9.78]
[1642378844546,11.36598676,147.77,147.67,10.1536]
[1642378844741,1.44698676,147.77,147.67,16.4396]
[1642378844941,1.44698676,147.77,147.67,16.6896]
[1642378845146,1.44698676,147.77,147.68,35.94180571]
[1642378845341,1.44698676,147.77,147.69,24.0101]
[1642378845745,1.44698676,147.77,147.69,34.413]
[1642378845945,10.1539,147.81,147.69,34.413]
[1642378846546,10.4039,147.81,147.69,34.413]
[1642378846747,10.1539,147.81,147.69,34.413]
[1642378847144,11.85467588,147.81,147.69,24.2601]
[1642378847350,18.51204709,147.81,147.69,0.25]
[1642378847947,14.26004709,147.81,147.69,23.3622]
[1642378848552,12.55927121,147.81,147.69,23.3622]
[1642378849347,6.65737121,147.81,147.69,23.3622]
[1642378849548,9.78,147.82,147.69,90.9122]
[1642378849753,10.03,147.82,147.69,96.9122]
[1642378850551,10.03,147.82,147.69,48.4331]
[1642378850748,21.88397588,147.82,147.69,42.4331]
[1642378850949,28.54134709,147.82,147.69,42.4331]
[1642378851751,28.54134709,147.82,147.69,33.5151]
[1642378853353,28.54134709,147.82,147.69,39.5151]
[1642378853552,28.54134709,147.82,147.69,33.5151]
[1642378854854,28.54134709,147.82,147.69,39.5151]
[1642378855254,28.54134709,147.82,147.69,33.5151]
[1642378855653,28.54134709,147.82,147.69,23.3622]
[1642378855855,107.29621224,147.82,147.69,23.3622]
[1642378856054,39.74621224,147.82,147.69,23.3622]
[1642378858961,1.91953673,147.8,147.69,23.3622]
[1642378859361,2.16953673,147.8,147.69,23.3622]
[1642378859561,48.33130377,147.8,147.69,23.3622]
[1642378861865,50.03207965,147.8,147.69,23.3622]
[1642378862362,1.91953673,147.79,147.69,23.1122]
[1642378862562,9.78,147.78,147.64,1.89871689]
[1642378862764,11.48077588,147.78,147.64,1.89871689]
[1642378862963,1.70077588,147.77,147.64,1.89871689]
[1642378863162,9.78,147.76,147.64,1.89871689]
[1642378863362,11.69953673,147.76,147.64,23.9841]
[1642378863563,11.69953673,147.76,147.65,49.57192371]
[1642378863866,10.1582,147.75,147.65,49.82192371]
[1642378864066,11.69953673,147.76,147.66,24.6347]
[1642378864362,11.69953673,147.76,147.66,24.8847]
[1642378864964,1.91953673,147.75,147.66,24.6347]
[1642378865162,42.92104479,147.74,147.66,24.6347]
[1642378865564,44.62182067,147.74,147.66,24.6347]
[1642378865978,44.62182067,147.74,147.65,49.57192371]
[1642378866373,54.65182067,147.74,147.65,49.57192371]
[1642378866771,54.65182067,147.74,147.65,49.82192371]
[1642378866970,66.7299574,147.74,147.65,49.82192371]
[1642378867694,66.7299574,147.74,147.65,0.25]
[1642378867892,66.7299574,147.74,147.62,23.9051]
[1642378868798,1.91953673,147.73,147.63,40.12394645]
[1642378869001,10.1603,147.72,147.63,40.12394645]
[1642378869197,10.1603,147.72,147.63,40.37394645]
[1642378869395,10.4103,147.72,147.63,40.37394645]
[1642378869594,10.4103,147.72,147.63,40.12394645]
[1642378869794,38.26263061,147.71,147.63,40.12394645]
[1642378870194,38.51263061,147.71,147.63,40.12394645]
[1642378870594,48.67333061,147.71,147.63,40.12394645]
[1642378871395,48.67333061,147.71,147.63,0.25]
[1642378871599,48.67333061,147.71,147.62,23.6551]
[1642378871997,48.67333061,147.71,147.62,23.9051]
[1642378872996,58.45333061,147.71,147.62,23.9051]
[1642378875901,58.20333061,147.71,147.62,23.9051]
[1642378876697,58.20333061,147.71,147.61,35.40992101]
[1642378876902,125.75333061,147.71,147.56,12.06041689]
[1642378877097,127.70410649,147.71,147.57,24.3632]
[1642378877497,127.70410649,147.71,147.57,30.6132]
[1642378877715,138.90897164,147.71,147.57,24.3632]
[1642378877897,67.55,147.69,147.57,24.3632]
[1642378878098,67.55,147.65,147.57,24.3632]
[1642378878299,40.0471101,147.64,147.57,24.3632]
[1642378878898,40.2971101,147.64,147.57,24.3632]
[1642378879104,58.9197101,147.64,147.52,1.89871689]
[1642378879300,9.78,147.63,147.52,1.89871689]
[1642378879501,17.17403788,147.63,147.51,1.89871689]
[1642378879698,1.70077588,147.62,147.51,1.89871689]
[1642378879899,9.78,147.61,147.51,1.89871689]
[1642378880099,43.44271982,147.6,147.51,1.89871689]
[1642378880299,53.22271982,147.6,147.51,1.89871689]
[1642378880502,10.1717,147.57,147.51,1.89871689]
[1642378880899,10.4217,147.57,147.51,1.89871689]
[1642378881201,10.4217,147.57,147.44,50.65921689]
[1642378881500,10.1721,147.54,147.45,40.42094855]
[1642378882004,10.4221,147.54,147.45,46.42094855]
[1642378882199,36.7884429,147.53,147.45,46.67094855]
[1642378882399,37.0384429,147.53,147.45,46.67094855]
[1642378882899,0.25,147.53,147.45,46.67094855]
[1642378883303,19.9505,147.56,147.45,46.67094855]
[1642378883702,61.75932932,147.56,147.45,46.67094855]
[1642378884103,19.9505,147.56,147.45,46.67094855]
[1642378884702,20.2005,147.56,147.45,46.67094855]
[1642378885103,19.9505,147.56,147.45,46.67094855]
[1642378885302,9.78,147.56,147.45,56.84024855]
[1642378885501,9.78,147.56,147.45,65.61624855]
[1642378886304,45.18979164,147.59,147.45,65.61624855]
[1642378886502,44.80139164,147.59,147.46,22.6817]
[1642378886902,45.05139164,147.59,147.46,28.9317]
[1642378887502,10.169,147.58,147.46,28.9317]
[1642378887902,10.419,147.58,147.46,28.9317]
[1642378888103,10.419,147.58,147.46,39.1005]
[1642378888303,10.169,147.58,147.46,39.1005]
[1642378888905,10.419,147.58,147.46,39.1005]
[1642378889904,9.78,147.59,147.46,39.1005]
[1642378890106,10.1679,147.6,147.46,39.1005]
[1642378890303,17.17403788,147.62,147.46,48.8805]
[1642378890707,17.42403788,147.62,147.47,67.55]
[1642378890907,37.09947738,147.61,147.49,10.1663]
[1642378891111,37.09947738,147.61,147.51,46.53283022]
[1642378891305,37.34947738,147.61,147.51,46.53283022]
[1642378891509,37.34947738,147.61,147.51,46.78283022]
[1642378891707,39.05025326,147.61,147.51,46.78283022]
[1642378892312,49.21735326,147.61,147.51,0.25]
[1642378892508,77.33,147.6,147.51,0.25]
[1642378892707,111.2306,147.6,147.46,23.3953]
[1642378892906,1.70077588,147.59,147.46,29.6453]
[1642378893107,11.48077588,147.59,147.46,29.6453]
[1642378893309,10.1702,147.56,147.47,37.80161196]
[1642378893509,43.53814101,147.55,147.47,37.80161196]
[1642378893906,43.53814101,147.55,147.46,29.3953]
[1642378894315,53.70934101,147.55,147.46,29.3953]
[1642378894510,62.92611689,147.55,147.46,29.3953]
[1642378894710,62.92611689,147.55,147.46,23.3953]
[1642378894911,72.70611689,147.55,147.46,23.3953]
[1642378895109,72.70611689,147.55,147.44,23.9]
[1642378895512,80.10015477,147.55,147.44,23.9]
[1642378896309,80.10015477,147.55,147.44,24.15]
[1642378896512,80.10015477,147.55,147.44,73.13699226]
[1642378896710,72.83415477,147.55,147.44,73.13699226]
[1642378896912,63.73934101,147.55,147.44,73.13699226]
[1642378897110,63.48934101,147.55,147.45,24.1585]
[1642378897311,63.73934101,147.55,147.44,24.15]
[1642378897521,65.44011689,147.55,147.44,24.15]
[1642378897715,65.44011689,147.55,147.44,0.25]
[1642378897912,65.44011689,147.55,147.4,29.1564]
[1642378898313,63.48934101,147.55,147.41,42.47583623]
[1642378898514,63.48934101,147.55,147.42,23.1407]
[1642378898712,63.73934101,147.55,147.42,23.1407]
[1642378898913,63.73934101,147.55,147.42,23.3907]
[1642378899114,63.73934101,147.55,147.42,33.5623]
[1642378900513,63.48934101,147.55,147.42,33.5623]
[1642378900714,53.31814101,147.55,147.42,107.1123]
[1642378900943,53.31814101,147.55,147.42,50.31288242]
[1642378901112,43.53814101,147.55,147.42,50.31288242]
[1642378901513,10.1698,147.57,147.43,67.55]
[1642378901713,11.22437776,147.59,147.46,10.1685]
[1642378901714,11.61307776,147.59,147.46,10.1685]
[1642378901913,11.61307776,147.59,147.47,22.7355]
[1642378902312,11.86307776,147.59,147.47,22.9855]
[1642378902514,38.93814592,147.58,147.48,40.99405321]
[1642378902913,39.18814592,147.58,147.48,40.99405321]
[1642378903513,49.35744592,147.58,147.48,40.99405321]
[1642378903715,1.70077588,147.57,147.47,22.7355]
[1642378903913,1.95077588,147.57,147.47,22.7355]
[1642378904313,1.70077588,147.56,147.47,22.7355]
[1642378904513,11.48077588,147.56,147.44,24.7815]
[1642378904713,45.051684,147.55,147.44,25.0315]
[1642378904913,57.17345988,147.55,147.44,25.0315]
[1642378905113,1.70077588,147.54,147.44,25.0315]
[1642378905520,1.95077588,147.54,147.44,25.0315]
[1642378905920,45.051684,147.55,147.45,24.9264]
[1642378906121,11.48077588,147.56,147.46,47.7537552]
[1642378906322,11.48077588,147.56,147.46,48.0037552]
[1642378907120,53.0163032,147.56,147.46,48.0037552]
[1642378907317,53.2663032,147.56,147.46,48.0037552]
[1642378907718,53.0163032,147.56,147.46,48.0037552]
[1642378907923,51.31552732,147.56,147.46,48.0037552]
[1642378908118,51.31552732,147.56,147.47,22.8205]
[1642378908321,51.31552732,147.56,147.47,23.0705]
[1642378909119,51.56552732,147.56,147.47,23.0705]
[1642378911324,69.25077588,147.55,147.47,23.0705]
[1642378911723,1.70077588,147.54,147.47,23.0705]
[1642378911925,1.95077588,147.54,147.47,23.0705]
[1642378912525,42.4543026,147.53,147.47,23.0705]
[1642378912726,10.1734,147.52,147.47,22.8205]
[1642378913329,10.4234,147.52,147.44,24.7815]
[1642378913529,10.4234,147.52,147.44,25.0315]
[1642378914129,10.4234,147.52,147.44,47.7688]
[1642378915334,10.1734,147.52,147.44,47.7688]
[1642378915733,10.4234,147.52,147.44,47.5188]
[1642378915958,10.1734,147.52,147.44,47.5188]
[1642378916459,42.4543026,147.53,147.44,47.5188]
[1642378917061,42.4543026,147.53,147.44,47.7688]
[1642378917463,42.7043026,147.53,147.44,47.7688]
[1642378918464,52.8770026,147.53,147.44,47.7688]
[1642378918665,10.4227,147.53,147.44,47.7688]
[1642378918864,11.48077588,147.57,147.44,47.7688]
[1642378919264,11.73077588,147.57,147.44,47.7688]
[1642378919764,36.55932194,147.56,147.45,1.89871689]
[1642378919968,36.55932194,147.56,147.5,200.0]
[1642378920768,38.26009782,147.56,147.5,200.0]
[1642378921364,38.51009782,147.56,147.5,200.0]
[1642378922464,48.68079782,147.56,147.5,200.0]
[1642378923967,12.12147588,147.56,147.51,36.09048098]
[1642378925368,12.12147588,147.56,147.5,200.0]
[1642378932174,10.4207,147.56,147.5,200.25]
[1642378932375,11.69953673,147.57,147.5,200.25]
[1642378932577,1.91953673,147.57,147.5,200.25]
[1642378932778,2.16953673,147.57,147.5,200.25]
[1642378933080,0.25,147.57,147.5,200.25]
[1642378933281,0.25,147.57,147.5,223.9157]
[1642378933883,13.62981449,147.59,147.5,223.9157]
[1642378934715,11.71027776,147.59,147.5,223.9157]
[1642378935485,13.41105364,147.59,147.5,223.9157]
[1642378935991,13.41105364,147.59,147.5,223.6657]
[1642378937284,1.44437776,147.59,147.5,223.9157]
[1642378937486,1.91953673,147.6,147.5,223.9157]
[1642378938286,12.08613673,147.62,147.5,223.9157]
[1642378938685,12.33613673,147.62,147.5,223.9157]
[1642378938986,10.4166,147.62,147.5,223.9157]
[1642378939285,10.4166,147.62,147.5,234.0815]
[1642378939486,12.11737588,147.62,147.5,223.9157]
[1642378939686,79.66737588,147.62,147.5,223.9157]
[1642378940391,86.52769154,147.62,147.5,223.9157]
[1642378940689,10.1703,147.58,147.5,223.6657]
[1642378940888,10.4203,147.58,147.5,200.0]
[1642378941090,1.70077588,147.57,147.5,200.0]
[1642378941288,39.17280349,147.56,147.5,200.0]
[1642378941887,49.34350349,147.56,147.5,200.0]
[1642378942392,49.59350349,147.56,147.5,200.0]
[1642378942990,49.34350349,147.56,147.5,200.25]
[1642378944090,49.34350349,147.56,147.5,239.88894052]
[1642378944290,49.34350349,147.56,147.5,200.25]
[1642378945093,39.17280349,147.56,147.5,200.25]
[1642378947400,49.34340349,147.56,147.5,200.25]
[1642378947593,49.59340349,147.56,147.5,200.0]
[1642378949096,0.25,147.56,147.5,200.25]
[1642378949596,20.7972,147.58,147.5,200.25]
[1642378950196,66.75796531,147.58,147.5,200.25]
[1642378953510,66.75796531,147.58,147.5,200.0]
[1642378953709,66.75796531,147.58,147.5,235.92249636]
[1642378953907,66.75796531,147.58,147.5,236.17249636]
[1642378955309,20.5472,147.58,147.5,236.17249636]
[1642378956913,10.3778,147.58,147.5,236.17249636]
[1642378957838,10.6278,147.58,147.5,236.17249636]
[1642378961050,0.25,147.58,147.5,236.17249636]
[1642378961248,59.00669726,147.6,147.51,23.2211]
[1642378961448,48.63259726,147.6,147.51,23.4711]
[1642378962446,1.70077588,147.59,147.51,23.4711]
[1642378962945,1.95077588,147.59,147.51,23.4711]
[1642378967551,1.70077588,147.59,147.51,23.4711]
[1642378967751,48.38259726,147.6,147.51,23.4711]
[1642378967951,48.63259726,147.6,147.51,23.4711]
[1642378968579,38.21479726,147.6,147.51,23.4711]
[1642378968781,11.69953673,147.61,147.51,23.4711]
[1642378969182,11.94953673,147.61,147.51,23.4711]
[1642378969680,47.05776862,147.6,147.51,23.4711]
[1642378970080,47.30776862,147.6,147.51,23.4711]
[1642378971081,47.05776862,147.6,147.51,23.4711]
[1642378972683,47.30776862,147.6,147.51,23.4711]
[1642378973083,47.05776862,147.6,147.51,23.4711]
[1642378974290,11.69953673,147.61,147.51,23.4711]
[1642378975386,11.94953673,147.61,147.51,23.4711]
[1642378975987,1.91953673,147.61,147.51,29.4711]
[1642378976188,1.91953673,147.61,147.51,39.6364]
[1642378977189,41.88823517,147.62,147.53,36.32732479]
[1642378977391,41.88823517,147.62,147.54,22.8813]
[1642378977790,41.88823517,147.62,147.54,23.1313]
[1642378978192,43.8077719,147.62,147.54,23.1313]
[1642378979394,1.91953673,147.62,147.54,23.1313]
[1642378982096,1.91953673,147.62,147.54,22.8813]
[1642378982296,2.16953673,147.62,147.54,22.8813]
[1642378982498,3.87031261,147.62,147.54,22.8813]
[1642378983098,1.91953673,147.6,147.54,22.8813]
[1642378983497,1.91953673,147.6,147.54,23.1313]
[1642378984699,37.47643252,147.6,147.54,23.1313]
[1642378984901,35.55689579,147.6,147.54,23.1313]
[1642378986001,12.08673673,147.61,147.54,23.1313]
[1642378986201,12.33673673,147.61,147.54,23.1313]
[1642378986599,2.16953673,147.61,147.54,23.1313]
[1642378987231,1.91953673,147.61,147.54,23.1313]
[1642378987602,1.91953673,147.62,147.54,23.1313]
[1642378988205,1.91953673,147.63,147.54,23.1313]
[1642378989007,12.23573673,147.64,147.54,90.6813]
[1642378989407,12.23573673,147.64,147.54,100.4613]
[1642378989805,10.3162,147.64,147.54,100.4613]
[1642378990205,10.3162,147.64,147.54,110.6245]
[1642378992408,1.91953673,147.66,147.54,110.6245]
[1642378992609,1.91953673,147.66,147.54,116.6245]
[1642378993010,1.91953673,147.66,147.58,77.7098]
[1642378993209,12.14003673,147.68,147.59,23.7226]
[1642378993409,12.14003673,147.68,147.59,23.9726]
[1642378993708,12.14003673,147.68,147.6,43.06160295]
[1642378993910,10.2205,147.68,147.6,43.31160295]
[1642378994109,36.161604,147.67,147.6,43.31160295]
[1642378994508,10.2205,147.68,147.6,43.31160295]
[1642378994949,12.14003673,147.68,147.6,43.31160295]
[1642378995353,12.14003673,147.68,147.6,49.31160295]
[1642378995554,12.14003673,147.68,147.6,43.31160295]
[1642378995756,51.80955607,147.68,147.6,43.31160295]
[1642378996354,49.89001934,147.68,147.6,43.31160295]
[1642378997154,51.80955607,147.68,147.6,43.31160295]
[1642378998155,49.89001934,147.68,147.6,43.31160295]
[1642378998355,49.89001934,147.68,147.6,0.25]
[1642378998757,51.80955607,147.68,147.59,23.9726]
[1642378998957,53.51033195,147.68,147.59,23.9726]
[1642378999156,53.76033195,147.68,147.59,23.9726]
[1642378999356,53.76033195,147.68,147.59,23.7226]
[1642378999557,63.92283195,147.68,147.59,23.7226]
[1642379000457,1.91953673,147.66,147.59,23.7226]
[1642379000658,44.32031058,147.65,147.59,23.9726]
[1642379001057,44.57031058,147.65,147.59,23.9726]
[1642379003360,54.73491058,147.65,147.54,9.78]
[1642379003562,56.43568646,147.65,147.55,22.7481]
[1642379004259,56.43568646,147.65,147.52,25.68881689]
[1642379004462,1.91953673,147.64,147.52,23.7901]
[1642379004663,10.1675,147.61,147.52,23.7901]
[1642379004860,38.21454684,147.6,147.52,23.7901]
[1642379005461,38.46454684,147.6,147.52,23.7901]
[1642379005663,38.46454684,147.6,147.52,24.0401]
[1642379006462,48.63254684,147.6,147.52,24.0401]
[1642379006665,48.63254684,147.6,147.51,23.2557]
[1642379006862,50.33332272,147.6,147.51,23.2557]
[1642379007866,50.33332272,147.6,147.51,23.5057]
[1642379008469,50.33332272,147.6,147.52,44.43411448]
[1642379008669,38.21454684,147.6,147.52,44.68411448]
[1642379008872,1.91953673,147.61,147.52,44.68411448]
[1642379009071,1.91953673,147.61,147.53,23.2385]
[1642379009470,1.91953673,147.61,147.53,23.4885]
[1642379009671,1.91953673,147.64,147.53,33.6524]
[1642379009872,36.72044489,147.64,147.53,33.6524]
[1642379010677,34.80090816,147.64,147.53,33.6524]
[1642379011273,34.80090816,147.64,147.53,39.6524]
[1642379011472,34.80090816,147.64,147.53,33.72019513]
[1642379012776,34.80090816,147.64,147.53,39.72019513]
[1642379013274,36.50168404,147.64,147.53,23.30629513]
[1642379013510,36.75168404,147.64,147.53,23.30629513]
[1642379013709,46.53168404,147.64,147.53,23.30629513]
[1642379014209,48.45122077,147.64,147.53,23.30629513]
[1642379014412,58.61642077,147.64,147.53,23.55629513]
[1642379015110,1.91953673,147.63,147.53,23.55629513]
[1642379015314,2.16953673,147.63,147.53,23.55629513]
[1642379015713,0.25,147.63,147.53,23.55629513]
[1642379016516,58.61642077,147.64,147.53,23.55629513]
[1642379019521,56.91564489,147.64,147.53,23.55629513]
[1642379019720,46.75044489,147.64,147.53,33.72019513]
[1642379020722,56.95264489,147.64,147.53,33.72019513]
[1642379023125,21.90173673,147.64,147.54,67.55]
[1642379023324,10.2022,147.64,147.54,73.8]
[1642379023528,10.2022,147.64,147.56,10.1616]
[1642379023926,10.2022,147.64,147.56,16.4116]
[1642379024124,10.2022,147.64,147.57,45.40528383]
[1642379024326,10.2022,147.64,147.57,68.90908383]
[1642379024625,10.2022,147.64,147.57,79.07018383]
[1642379024825,1.91953673,147.67,147.58,147.0]
[1642379025025,1.91953673,147.67,147.58,156.78]
[1642379025227,1.91953673,147.67,147.58,157.03]
[1642379025629,41.47617673,147.66,147.6,38.76943403]
[1642379025832,41.47617673,147.66,147.6,39.01943403]
[1642379026325,10.2205,147.68,147.6,39.01943403]